fUSD/lending_fUSD_20260205
["ID","MTS","AMOUNT","RATE_DAILY","PERIOD"]
[404544207,1770271843135,-12480.73588774,0.00017295,2]
[404544208,1770271843144,-370.0,0.00017299,2]
[404544209,1770271843155,-242.15909246,0.00017319,2]
[404544210,1770271843166,-200.0,0.00017367,2]
[404544211,1770271843175,-251.11897888,0.00017374,2]
[404544212,1770271843184,-426.0,0.00017382,2]
[404544213,1770271843194,-260.4103811,0.00017429,2]
[404544214,1770271843204,-200.0,0.00017447,2]
[404544215,1770271843215,-426.0,0.00017451,2]
[404544216,1770271843224,-500.0,0.00017452,2]
[404544217,1770271843234,-270.0455652,0.00017484,2]
[404544218,1770271843243,-152.0,0.00017502,3]
[404544219,1770271843252,-1000.0,0.00017534,2]
[404544220,1770271843261,-280.03725112,0.00017539,2]
[404544221,1770271843270,-426.0,0.00017584,2]
[404544222,1770271843279,-290.39862941,0.00017594,2]
[404544223,1770271843288,-209.98794847,0.00017647,2]
[404544224,1770271843298,-181.08010149,0.00017647,2]
[404544225,1770271843307,-426.0,0.00017648,2]
[404544226,1770271843316,-301.1433787,0.00017649,2]
[404544227,1770271843326,-591.0,0.00017693,2]
[404544228,1770271843342,-8633.52619887,0.000177,2]
[404544229,1770271843351,-247.97,0.00017721,2]
[404544230,1770271843360,-1000.0,0.00017727,2]
[404544231,1770271843369,-1000.0,0.00017727,2]
[404544232,1770271843379,-1000.0,0.00017727,2]
[404544233,1770271843388,-1000.0,0.00017727,2]
[404544234,1770271843397,-1000.0,0.00017727,2]
[404544235,1770271843406,-1000.0,0.00017727,2]
[404544236,1770271843415,-1000.0,0.00017727,2]
[404544237,1770271843424,-1000.0,0.00017727,2]
[404544238,1770271843433,-1000.0,0.00017727,2]
[404544239,1770271843443,-1000.0,0.00017727,2]
[404544240,1770271843452,-1000.0,0.00017727,2]
[404544241,1770271843464,-506.851,0.00017727,2]
[404544242,1770271843473,-173.45848611,0.00017735,2]
[404544243,1770271843483,-1000.0,0.00017743,2]
[404544244,1770271843492,-150.0,0.00017749,2]
[404544245,1770271843502,-1000.0,0.00017766,2]
[404544246,1770271843511,-1000.0,0.00017775,2]
[404544247,1770271843520,-1000.0,0.00017778,2]
[404544248,1770271843530,-1000.0,0.00017783,2]
[404544249,1770271843539,-152.05768541,0.00017789,2]
[404544250,1770271843548,-1000.0,0.00017801,2]
[404544251,1770271843558,-1253.858,0.00017802,2]
[404544252,1770271843567,-181.423,0.00017802,2]
[404544253,1770271843577,-1000.0,0.00017804,2]
[404544254,1770271843586,-150.0,0.00017808,2]
[404544255,1770271843595,-1000.0,0.00017808,2]
[404544256,1770271843604,-150.0,0.00017809,2]
[404544257,1770271843613,-1000.0,0.00017812,2]
[404544258,1770271843622,-150.0,0.00017821,2]
[404544259,1770271843632,-1000.0,0.00017831,2]
[404544260,1770271843641,-426.0,0.00017838,2]
[404544261,1770271843650,-150.0,0.0001784,2]
[404544262,1770271843660,-150.0,0.00017855,2]
[404544263,1770271843669,-500.0,0.00017856,2]
[404544264,1770271843679,-500.0,0.00017856,2]
[404544265,1770271843688,-500.0,0.00017856,2]
[404544266,1770271843698,-150.0,0.00017861,2]
[404544267,1770271843708,-150.0,0.00017865,2]
[404544268,1770271843718,-1000.0,0.00017869,2]
[404544270,1770271843727,-175.52213451,0.00017878,2]
[404544271,1770271843736,-165.88513622,0.00017878,2]
[404544272,1770271843746,-150.0,0.00017889,2]
[404544273,1770271843755,-150.0,0.00017892,2]
[404544274,1770271843764,-26496.8487,0.000179,2]
[404544275,1770271843774,-4800.0,0.000179,2]
[404544277,1770271843783,-25000.0,0.000179,3]
[404544279,1770271843793,-6440.65816456,0.000179,3]
[404544280,1770271843802,-160.0,0.000179,3]
[404544281,1770271843812,-175.52213451,0.000179,2]
[404544282,1770271843821,-165.88513622,0.000179,2]
[404544283,1770271843832,-14994.21712671,0.000179,2]
[404544284,1770271843841,-2696.35842262,0.000179,2]
[404544286,1770271843851,-12480.73588774,0.000179,2]
[404544288,1770271843860,-64730.0714093,0.000179,2]
[404544290,1770271843870,-87582.0825,0.000179,2]
[404544292,1770271843880,-14038.0,0.000179,2]
[404544293,1770271843890,-150.0,0.00017902,2]
[404544295,1770271843899,-1000.0,0.00017902,2]
[404544297,1770271843908,-1000.0,0.00017911,2]
[404544299,1770271843918,-200.0,0.00017914,2]
[404544300,1770271843927,-1000.0,0.00017936,2]
[404544301,1770271843936,-207.76603134,0.00017936,2]
[404544302,1770271843945,-150.0,0.00017937,2]
[404544303,1770271843955,-1000.0,0.00017948,2]
[404544304,1770271843969,-1000.0,0.00017962,2]
[404544305,1770271843978,-1000.0,0.00017967,2]
[404544306,1770271843988,-1000.0,0.0001797,2]
[404544307,1770271843998,-500.0,0.00017973,2]
[404544308,1770271844008,-500.0,0.00017973,2]
[404544309,1770271844018,-500.0,0.00017973,2]
[404544310,1770271844027,-500.0,0.00017973,2]
[404544311,1770271844039,-500.0,0.00017973,2]
[404544312,1770271844048,-500.0,0.00017973,2]
[404544313,1770271844058,-500.0,0.00017973,2]
[404544314,1770271844067,-309.44398841,0.00017973,2]
[404544315,1770271844076,-500.0,0.00017973,2]
[404544316,1770271844086,-500.0,0.00017973,2]
[404544317,1770271844095,-500.0,0.00017973,2]
[404544318,1770271844104,-500.0,0.00017973,2]
[404544319,1770271844114,-500.0,0.00017973,2]
[404544320,1770271844123,-500.0,0.00017973,2]
[404544321,1770271844133,-500.0,0.00017973,2]
[404544322,1770271844142,-561.5530591,0.00017973,2]
[404544323,1770271844151,-500.0,0.00017973,2]
[404544324,1770271844160,-500.0,0.00017973,2]
[404544325,1770271844170,-500.0,0.00017973,2]
[404544326,1770271844179,-500.0,0.00017973,2]
[404544327,1770271844188,-500.0,0.00017973,2]
[404544328,1770271844197,-500.0,0.00017973,2]
[404544329,1770271844208,-500.0,0.00017973,2]
[404544330,1770271844220,-500.0,0.00017973,2]
[404544331,1770271844230,-500.0,0.00017973,2]
[404544332,1770271844239,-500.0,0.00017973,2]
[404544333,1770271844248,-500.0,0.00017973,2]
[404544334,1770271844257,-500.0,0.00017973,2]
[404544335,1770271844267,-500.0,0.00017973,2]
[404544336,1770271844276,-500.0,0.00017973,2]
[404544337,1770271844286,-500.0,0.00017973,2]
[404544338,1770271844295,-500.0,0.00017973,2]
[404544339,1770271844304,-520.97702983,0.00017973,2]
[404544340,1770271844313,-500.0,0.00017973,2]
[404544341,1770271844323,-500.0,0.00017973,2]
[404544342,1770271844333,-500.0,0.00017973,2]
[404544343,1770271844343,-500.0,0.00017973,2]
[404544344,1770271844352,-262.39107038,0.00017973,2]
[404544345,1770271844362,-502.08032841,0.00017973,2]
[404544346,1770271844372,-500.0,0.00017973,2]
[404544347,1770271844385,-500.0,0.00017973,2]
[404544348,1770271844397,-500.0,0.00017973,2]
[404544349,1770271844407,-1000.0,0.00017976,2]
[404544350,1770271844419,-53522.6790069,0.00017978,2]
[404544351,1770271844429,-8944.2401396,0.00017978,2]
[404544352,1770271844439,-262078.3020939,0.00017978,2]
[404544353,1770271844449,-11765.4465177,0.00017978,2]
[404544354,1770271844464,-2435.2546278,0.00017978,2]
[404544355,1770271844477,-1000.0,0.00017982,2]
[404544356,1770271844488,-500.0,0.00017982,2]
[404544357,1770271844499,-519.49,0.00017998,2]
[404544358,1770271844509,-150.0,0.00017999,2]
[404544359,1770271844518,-252.01216033,0.00017999,2]
[404544360,1770271844531,-155.0,0.00017999,2]
[404544361,1770271844540,-519.49,0.00017999,2]
[404544362,1770271844550,-519.49,0.00017999,2]
[404544363,1770271844559,-519.49,0.00017999,2]
[404544364,1770271844569,-519.49,0.00017999,2]
[404544365,1770271844578,-519.49,0.00017999,2]
[404544366,1770271844588,-519.53,0.00017999,2]
[404544367,1770271844597,-300.0,0.00017999,2]
[404544368,1770271844607,-666.0,0.00017999,2]
[404544369,1770271844616,-300.0,0.00017999,2]
[404544370,1770271844625,-300.0,0.00017999,2]
[404544371,1770271844634,-300.0,0.00017999,2]
[404544372,1770271844644,-666.0,0.00017999,2]
[404544373,1770271844654,-675127.47680509,0.00018,2]
[404544374,1770271844663,-2001.10148409,0.00018,2]
[404544375,1770271844672,-527819.58533392,0.00018,2]
[404544376,1770271844681,-227261.09499225,0.00018,2]
[404544377,1770271844691,-1047680.95701619,0.00018,2]
[404544378,1770271844798,-783.94939895,0.00018,2]
[404544379,1770271845152,-3223.53323734,0.00018,2]
[404544382,1770271846394,-2466.995,0.00016243,2]
[404544384,1770271846404,-8923.62999368,0.00018,2]
[404544386,1770271846454,-327.5923357,0.00018,2]
[404544440,1770272799743,-597.0702998,0.00011946,2]
[404544441,1770272799766,-181.423,0.00012046,2]
[404544442,1770272799789,-1253.858,0.00012046,2]
[404544443,1770272799815,-1200.0,0.00012191,2]
[404544444,1770272799838,-300.0,0.00012191,2]
[404544445,1770272799860,-2500.0,0.00012192,2]
[404544446,1770272799882,-4123.3752,0.00012192,2]
[404544447,1770272799905,-150.0,0.00012192,2]
[404544448,1770272799927,-300.0,0.00012192,2]
[404544449,1770272799951,-11232.66229902,0.00012193,2]
[404544450,1770272799974,-13494.79541412,0.00012193,2]
[404544451,1770272799997,-3270.31681119,0.00012193,2]
[404544452,1770272800020,-175.52213451,0.00012193,2]
[404544453,1770272800045,-165.88513622,0.00012193,2]
[404544454,1770272800067,-561.45649717,0.00012193,2]
[404544455,1770272800091,-558.95,0.00012284,2]
[404544456,1770272800113,-200.0,0.00012284,2]
[404544457,1770272800137,-500.0,0.00012284,2]
[404544458,1770272800160,-500.0,0.00012284,2]
[404544459,1770272800183,-500.0,0.00012284,2]
[404544460,1770272800207,-500.0,0.00012284,2]
[404544461,1770272800230,-578.22842639,0.00012284,2]
[404544462,1770272800256,-151.0,0.00012284,2]
[404544463,1770272800279,-500.0,0.00012284,2]
[404544464,1770272800303,-151.0,0.00012284,2]
[404544465,1770272800326,-500.0,0.00012284,2]
[404544466,1770272800350,-151.0,0.00012284,2]
[404544467,1770272800372,-500.0,0.00012284,2]
[404544468,1770272800394,-151.0,0.00012284,2]
[404544469,1770272800416,-500.0,0.00012284,2]
[404544470,1770272800439,-151.0,0.00012284,2]
[404544471,1770272800461,-500.0,0.00012284,2]
[404544472,1770272800483,-151.0,0.00012284,2]
[404544473,1770272800519,-500.0,0.00012284,2]
[404544474,1770272800547,-151.0,0.00012284,2]
[404544475,1770272800570,-500.0,0.00012284,2]
[404544476,1770272800594,-151.0,0.00012284,2]
[404544477,1770272800620,-151.0,0.00012284,2]
[404544478,1770272800644,-151.0,0.00012284,2]
[404544479,1770272800668,-151.0,0.00012284,2]
[404544480,1770272800690,-200.0,0.00012284,2]
[404544481,1770272800712,-500.0,0.00012284,2]
[404544482,1770272800742,-132042.68791048,0.00012292,2]
[404544506,1770273032064,-2235.31361981,0.00012084,2]
[404544509,1770273032076,-10109.3960691,0.00012084,2]
[404544511,1770273032086,-150.0,0.00012091,2]
[404544512,1770273032096,-2180.21120746,0.00012092,2]
[404544513,1770273032106,-4839.15714454,0.00012092,2]
[404544515,1770273032262,-299.99,0.00012092,2]
[404544516,1770273032274,-856.00903597,0.00012092,2]
[404544517,1770273032287,-303.999998,0.00012092,2]
[404544518,1770273032314,-706.49,0.00012092,2]
[404544519,1770273032328,-776.15703811,0.00012092,2]
[404544531,1770273038162,-4363.51265607,0.00012092,2]
[404544532,1770273038173,-4204.7059183,0.00012093,2]
[404544533,1770273038187,-500.0,0.00012093,2]
[404544534,1770273038199,-1402.02305659,0.00012093,2]
[404544535,1770273038211,-769.31118832,0.00012093,2]
[404544536,1770273038223,-1976.88057105,0.00012093,2]
[404544537,1770273038246,-335.96000004,0.00012093,2]
[404544538,1770273038257,-143014.6907058,0.00012093,2]
[404544539,1770273038269,-963.02821688,0.00012093,2]
[404544540,1770273038281,-73239.3091477,0.00012093,2]
[404544546,1770273040714,-2054.98497725,0.00012093,2]
[404544547,1770273040726,-3271539.10621807,0.00012093,2]
[404544548,1770273040736,-2500.0,0.00012192,2]
[404544549,1770273040746,-200.0,0.00012284,2]
[404544550,1770273040756,-151.0,0.00012284,2]
[404544551,1770273040766,-151.0,0.00012284,2]
[404544552,1770273040775,-151.0,0.00012284,2]
[404544553,1770273040784,-151.0,0.00012284,2]
[404544554,1770273040794,-151.0,0.00012284,2]
[404544555,1770273040803,-151.0,0.00012284,2]
[404544556,1770273040813,-151.0,0.00012284,2]
[404544557,1770273040823,-151.0,0.00012284,2]
[404544558,1770273040832,-151.0,0.00012284,2]
[404544559,1770273040842,-151.0,0.00012284,2]
[404544560,1770273040851,-200.0,0.00012284,2]
[404544561,1770273040861,-151.0,0.00012284,2]
[404544562,1770273040875,-500.0,0.00012284,2]
[404544563,1770273040884,-500.0,0.00012284,2]
[404544564,1770273040894,-500.0,0.00012284,2]
[404544565,1770273040904,-500.0,0.00012284,2]
[404544566,1770273040914,-500.0,0.00012284,2]
[404544567,1770273040923,-500.0,0.00012284,2]
[404544568,1770273040934,-500.0,0.00012284,2]
[404544569,1770273040943,-500.0,0.00012284,2]
[404544570,1770273040954,-226.0059482,0.00012284,2]
[404544571,1770273040964,-500.0,0.00012284,2]
[404544572,1770273040974,-1000.0,0.0001229,2]
[404544573,1770273040984,-185.0,0.00012292,3]
[404544574,1770273040993,-152.0,0.00012292,3]
[404544575,1770273041003,-156.0,0.00012292,3]
[404544576,1770273041013,-9999.99,0.00012293,2]
[404544577,1770273041023,-5326.57,0.00012293,2]
[404544578,1770273041032,-9999.99,0.00012293,2]
[404544579,1770273041042,-4999.99,0.00012293,2]
[404544580,1770273041051,-150.99,0.00012293,2]
[404544581,1770273041062,-1610.11,0.00012293,2]
[404544582,1770273041075,-499.99,0.00012293,2]
[404544583,1770273041085,-6655.19,0.00012293,2]
[404544584,1770273041095,-9999.99,0.00012293,2]
[404544585,1770273041105,-14611.7,0.00012293,2]
[404544586,1770273041114,-22333.09,0.00012293,2]
[404544587,1770273041124,-150.99,0.00012293,2]
[404544588,1770273041134,-26701.08,0.00012293,2]
[404544589,1770273041143,-9999.99,0.00012293,2]
[404544590,1770273041153,-299.99,0.00012293,2]
[404544591,1770273041163,-999.99,0.00012293,2]
[404544592,1770273041173,-1670.57113124,0.00012332,2]
[404544593,1770273041183,-1054.3,0.00012363,2]
[404544594,1770273041193,-500.0,0.00012388,2]
[404544595,1770273041203,-1000.0,0.00012392,2]
[404544596,1770273041212,-12372.57,0.00012408,2]
[404544597,1770273041222,-500.0,0.00012482,2]
[404544598,1770273041232,-558.95,0.00012558,2]
[404544599,1770273041241,-10109.39606906,0.0001273,2]
[404544600,1770273041251,-12145.31587262,0.00012737,2]
[404544601,1770273041261,-558.95,0.00012832,2]
[404544602,1770273041271,-200.0,0.00012832,2]
[404544603,1770273041280,-200.0,0.00012832,2]
[404544604,1770273041290,-500.0,0.00012832,2]
[404544605,1770273041300,-2235.31361979,0.00012915,2]
[404544606,1770273041315,-516.8,0.00013104,2]
[404544607,1770273041324,-558.95,0.00013106,2]
[404544608,1770273041334,-255.0,0.00013179,2]
[404544609,1770273041344,-250.0,0.00013292,2]
[404544610,1770273041354,-10109.39606906,0.00013376,2]
[404544611,1770273041364,-558.95,0.0001338,2]
[404544612,1770273041374,-233.22924952,0.0001338,2]
[404544613,1770273041386,-500.0,0.0001338,2]
[404544614,1770273041396,-12145.31587262,0.00013383,2]
[404544615,1770273041405,-269.92100004,0.00013424,2]
[404544616,1770273041415,-150.0,0.00013424,2]
[404544617,1770273041424,-3240.0,0.00013425,2]
[404544618,1770273041434,-150.0,0.00013479,2]
[404544619,1770273041443,-273.38131323,0.00013534,2]
[404544620,1770273041453,-558.95,0.00013654,2]
[404544621,1770273041463,-500.0,0.00013698,2]
[404544622,1770273041473,-500.0,0.00013698,2]
[404544623,1770273041483,-500.0,0.00013698,2]
[404544624,1770273041494,-160.87387984,0.00013698,2]
[404544625,1770273041503,-500.0,0.00013698,2]
[404544626,1770273041513,-500.0,0.00013698,2]
[404544627,1770273041523,-500.0,0.00013698,2]
[404544628,1770273041534,-500.0,0.00013698,2]
[404544629,1770273041544,-500.0,0.00013698,2]
[404544630,1770273041554,-500.0,0.00013698,2]
[404544631,1770273041566,-500.0,0.00013698,2]
[404544632,1770273041576,-418.4948437,0.00013698,2]
[404544633,1770273041586,-500.0,0.00013698,2]
[404544634,1770273041835,-500.0,0.00013698,2]
[404544635,1770273041847,-500.0,0.00013698,2]
[404544636,1770273041858,-500.0,0.00013698,2]
[404544637,1770273041868,-519.87500599,0.00013698,2]
[404544638,1770273041878,-500.0,0.00013698,2]
[404544639,1770273041887,-507.70655637,0.00013698,2]
[404544640,1770273041897,-500.0,0.00013698,2]
[404544641,1770273041907,-500.0,0.00013698,2]
[404544642,1770273041916,-500.0,0.00013698,2]
[404544643,1770273041926,-500.0,0.00013698,2]
[404544644,1770273041935,-500.0,0.00013698,2]
[404544645,1770273041945,-590.10761957,0.00013698,2]
[404544646,1770273041955,-500.0,0.00013698,2]
[404544647,1770273041964,-500.0,0.00013698,2]
[404544648,1770273041974,-288.02611632,0.00013698,2]
[404544649,1770273041983,-500.0,0.00013698,2]
[404544650,1770273041993,-500.0,0.00013698,2]
[404544651,1770273042003,-198.00308747,0.00013698,2]
[404544652,1770273042013,-500.0,0.00013698,2]
[404544653,1770273042022,-500.0,0.00013698,2]
[404544654,1770273042032,-500.0,0.00013698,2]
[404544655,1770273042041,-500.0,0.00013698,2]
[404544656,1770273042051,-500.0,0.00013698,2]
[404544657,1770273042064,-500.0,0.00013698,2]
[404544658,1770273042074,-500.0,0.00013698,2]
[404544659,1770273042084,-500.0,0.00013698,2]
[404544660,1770273042093,-350.20210057,0.00013698,2]
[404544661,1770273042103,-500.0,0.00013698,2]
[404544662,1770273042113,-500.0,0.00013698,2]
[404544663,1770273042123,-500.0,0.00013698,2]
[404544664,1770273042144,-405.3888533,0.00013698,2]
[404544665,1770273042157,-500.0,0.00013698,2]
[404544666,1770273042168,-500.0,0.00013698,2]
[404544667,1770273042178,-447.07793737,0.00013698,2]
[404544668,1770273042190,-500.0,0.00013698,2]
[404544669,1770273042200,-500.0,0.00013698,2]
[404544670,1770273042211,-500.0,0.00013698,2]
[404544671,1770273042223,-500.0,0.00013698,2]
[404544672,1770273042233,-500.0,0.00013698,2]
[404544673,1770273042244,-500.0,0.00013698,2]
[404544674,1770273042254,-500.0,0.00013698,2]
[404544675,1770273042264,-500.0,0.00013698,2]
[404544676,1770273042275,-500.0,0.00013698,2]
[404544677,1770273042285,-500.0,0.00013698,2]
[404544678,1770273042296,-500.0,0.00013698,2]
[404544679,1770273042309,-500.0,0.00013698,2]
[404544680,1770273042322,-500.0,0.00013698,2]
[404544681,1770273042333,-500.0,0.00013698,2]
[404544682,1770273042344,-500.0,0.00013698,2]
[404544683,1770273042355,-500.0,0.00013698,2]
[404544684,1770273042367,-500.0,0.00013698,2]
[404544685,1770273042377,-457.99797698,0.00013698,2]
[404544686,1770273042388,-500.0,0.00013698,2]
[404544687,1770273042398,-500.0,0.00013698,2]
[404544688,1770273042409,-500.0,0.00013698,2]
[404544689,1770273042419,-500.0,0.00013698,2]
[404544690,1770273042430,-500.0,0.00013698,2]
[404544691,1770273042440,-500.0,0.00013698,2]
[404544692,1770273042451,-500.0,0.00013698,2]
[404544693,1770273042461,-500.0,0.00013698,2]
[404544694,1770273042471,-500.0,0.00013698,2]
[404544695,1770273042481,-175.41,0.00013698,2]
[404544696,1770273042491,-1991.02,0.00013699,2]
[404544697,1770273042506,-2482.56,0.00013699,2]
[404544698,1770273042517,-200.0,0.00013716,2]
[404544699,1770273042528,-2235.31361979,0.00013746,2]
[404544700,1770273042539,-1000.0,0.00013826,2]
[404544701,1770273042549,-9333.59518975,0.00013914,2]
[404544702,1770273042562,-24631.50537764,0.00013914,2]
[404544703,1770273042572,-43452.89515177,0.00013914,2]
[404544704,1770273042584,-558.95,0.00013928,2]
[404544705,1770273042594,-500.0,0.00013928,2]
[404544706,1770273042605,-10109.39606906,0.00014023,2]
[404544707,1770273042615,-12145.31587262,0.00014028,2]
[404544708,1770273042625,-558.95,0.00014202,2]
[404544709,1770273042636,-152.0,0.00014268,3]
[404544710,1770273042646,-433.0,0.00014364,2]
[404544711,1770273042656,-1991.02,0.00014384,2]
[404544712,1770273042667,-160.0,0.00014407,2]
[404544713,1770273042677,-558.95,0.00014476,2]
[404544714,1770273042688,-247.44,0.00014563,2]
[404544715,1770273042699,-2235.31361979,0.00014577,2]
[404544716,1770273042709,-500.0,0.000146,2]
[404544717,1770273042720,-500.0,0.000146,2]
[404544718,1770273042731,-500.0,0.000146,2]
[404544719,1770273042742,-500.0,0.000146,2]
[404544720,1770273042753,-500.0,0.000146,2]
[404544721,1770273042763,-500.0,0.000146,2]
[404544722,1770273042774,-151.0,0.00014634,2]
[404544723,1770273042784,-151.0,0.00014634,2]
[404544724,1770273042794,-10109.39606906,0.00014669,2]
[404544725,1770273042806,-12145.31587262,0.00014673,2]
[404544726,1770273042816,-558.95,0.0001475,2]
[404544727,1770273042826,-2180.21120746,0.00014996,2]
[404544728,1770273042836,-29759.72262329,0.00015,2]
[404544729,1770273042846,-418.21759378,0.00015,2]
[404544730,1770273042856,-152.62,0.00015,2]
[404544731,1770273042866,-558.95,0.00015024,2]
[404544732,1770273042877,-1991.02,0.00015068,2]
[404544733,1770273042887,-1000.0,0.00015148,2]
[404544734,1770273042898,-1000.0,0.00015148,2]
[404544735,1770273042908,-500.0,0.00015148,2]
[404544736,1770273042918,-347.37162909,0.00015148,2]
[404544737,1770273042928,-500.0,0.00015148,2]
[404544738,1770273042938,-558.95,0.00015298,2]
[404544739,1770273042948,-1517.64,0.000153,2]
[404544740,1770273042958,-10109.39606906,0.00015315,2]
[404544741,1770273042968,-12145.31587262,0.00015319,2]
[404544742,1770273042978,-1000.0,0.00015363,2]
[404544743,1770273042988,-508.83519453,0.000154,2]
[404544744,1770273042998,-2235.31361979,0.00015407,2]
[404544745,1770273043009,-1670.57113124,0.00015466,2]
[404544746,1770273043019,-558.95,0.00015572,2]
[404544747,1770273043028,-250.37152364,0.00015602,2]
[404544748,1770273043039,-1500.0,0.00015696,2]
[404544749,1770273043050,-1504.24108191,0.00015696,2]
[404544750,1770273043062,-1991.02,0.00015753,2]
[404544751,1770273043072,-500.0,0.00015793,2]
[404544752,1770273043083,-156.0,0.00015804,3]
[404544753,1770273043094,-2046.60264728,0.00015807,2]
[404544754,1770273043104,-558.95,0.00015846,2]
[404544755,1770273043115,-197.54,0.00015918,2]
[404544756,1770273043125,-152.05768541,0.00015945,2]
[404544757,1770273043135,-10109.39606906,0.00015961,2]
[404544758,1770273043146,-12145.31587262,0.00015964,2]
[404544759,1770273043156,-957.19260386,0.00016,2]
[404544760,1770273043166,-320.47368523,0.00016,2]
[404544761,1770273043175,-5956.53345956,0.00016,2]
[404544762,1770273043186,-150.27588128,0.00016,2]
[404544763,1770273043196,-500.0,0.0001603,2]
[404544764,1770273043206,-558.95,0.0001612,2]
[404544765,1770273043215,-5000.00782727,0.000162,5]
[404544766,1770273043225,-8330.69,0.00016214,2]
[404544767,1770273043235,-2235.31361979,0.00016238,2]
[404544768,1770273043245,-152.0,0.00016243,3]
[404544769,1770273043256,-150.0,0.00016243,2]
[404544770,1770273043266,-1205.0,0.00016243,2]
[404544771,1770273043275,-917.0,0.00016243,2]
[404544772,1770273043286,-1317.0,0.00016243,2]
[404544773,1770273043296,-2466.995,0.00016243,2]
[404544774,1770273043308,-1335.0,0.00016243,2]
[404544775,1770273043321,-3491.028,0.00016243,2]
[404544776,1770273043331,-1291.24412758,0.00016244,2]
[404544777,1770273043341,-500.0,0.00016356,2]
[404544778,1770273043351,-558.95,0.00016394,2]
[404544779,1770273043360,-65002.93240009,0.00016414,2]
[404544780,1770273043370,-87951.2733,0.00016414,2]
[404544781,1770273043381,-1991.02,0.00016438,2]
[404544782,1770273043392,-152.05768541,0.00016558,2]
[404544783,1770273043402,-10109.39606906,0.00016608,2]
[404544784,1770273043411,-12145.31587262,0.00016609,2]
[404544785,1770273043421,-558.95,0.00016668,2]
[404544786,1770273043431,-1000.0,0.00016899,2]
[404544787,1770273043441,-558.95,0.00016942,2]
[404544788,1770273043451,-1014.0,0.00017005,2]
[404544789,1770273043460,-1014.0,0.00017011,2]
[404544790,1770273043470,-1670.57113124,0.00017033,2]
[404544791,1770273043479,-2235.31361979,0.00017069,2]
[404544792,1770273043490,-322.6107,0.00017099,2]
[404544793,1770273043499,-174.61919141,0.00017099,2]
[404544794,1770273043509,-2000.0,0.00017099,2]
[404544795,1770273043519,-1449.10348087,0.00017099,2]
[404544796,1770273043529,-2000.0,0.00017099,2]
[404544797,1770273043539,-2000.0,0.00017099,2]
[404544798,1770273043548,-743.50770149,0.00017099,2]
[404544799,1770273043560,-2000.0,0.00017099,2]
[404544800,1770273043570,-2000.0,0.00017099,2]
[404544801,1770273043580,-2000.0,0.00017099,2]
[404544802,1770273043590,-2000.0,0.00017099,2]
[404544803,1770273043600,-2000.0,0.00017099,2]
[404544804,1770273043610,-216.07161542,0.00017099,2]
[404544805,1770273043619,-2000.0,0.00017099,2]
[404544806,1770273043629,-2000.0,0.00017099,2]
[404544807,1770273043638,-2000.0,0.00017099,2]
[404544808,1770273043648,-1508.30623238,0.00017099,2]
[404544809,1770273043658,-578.20924308,0.00017099,2]
[404544810,1770273043668,-209.40437684,0.00017099,2]
[404544811,1770273043678,-168.0,0.00017129,2]
[404544812,1770273043689,-168.0,0.0001713,2]
[404544813,1770273043698,-217.15233878,0.00017154,2]
[404544814,1770273043708,-168.0,0.00017155,2]
[404544815,1770273043719,-152.05768541,0.00017171,2]
[404544816,1770273043728,-225.18697532,0.00017209,2]